bitfinex/quotes_ETHUSD_20230404
["timestamp","ask_amount","ask_price","bid_price","bid_amount"]
[1680640236077,0.14215149,1867.5,1866.9,9.94702279]
[1680640236292,0.13315149,1867.5,1866.9,9.94702279]
[1680640236500,0.14215149,1867.5,1866.9,9.94702279]
[1680640237062,0.14215149,1867.5,1867.0,6.28512354]
[1680640237290,0.14215149,1867.5,1867.2,0.26777]
[1680640239273,0.14215149,1867.5,1867.1,0.89629235]
[1680640240708,0.13315149,1867.5,1867.1,0.89419849]
[1680640243608,0.40089149,1867.5,1867.1,0.62641849]
[1680640243809,0.13315149,1867.5,1867.0,0.2678]
[1680640244107,0.23,1867.4,1867.2,0.72946736]
[1680640244476,2.99602218,1867.4,1867.2,0.72946736]
[1680640245592,2.99602218,1867.4,1867.2,0.67618788]
[1680640246113,2.99602218,1867.4,1867.1,0.26779]
[1680640246309,2.99602218,1867.4,1866.9,2.99480345]
[1680640246615,2.99602218,1867.4,1867.0,0.56727034]
[1680640246817,2.99602218,1867.4,1867.0,0.26779]
[1680640247110,2.99602218,1867.4,1867.1,0.72626264]
[1680640248604,2.99602218,1867.4,1867.1,0.99405264]
[1680640248805,2.99602218,1867.4,1867.1,0.72626264]
[1680640251988,2.99602218,1867.4,1867.1,0.99405264]
[1680640252187,3.64002218,1867.4,1867.1,0.72626264]
[1680640254098,3.64002218,1867.4,1867.0,0.2678]
[1680640255031,3.64002218,1867.4,1867.1,0.72727693]
[1680640257707,3.90777218,1867.4,1867.1,0.72727693]
[1680640258200,3.64002218,1867.4,1867.1,0.72727693]
[1680640259603,0.646,1867.2,1867.1,0.72727693]
[1680640259806,3.41202218,1867.2,1867.1,0.72727693]
[1680640260018,3.64202218,1867.2,1867.1,0.72727693]
[1680640262051,4.28802218,1867.2,1867.1,0.72727693]
[1680640266463,4.2852196,1867.2,1867.1,0.72727693]
[1680640275545,3.64202218,1867.2,1867.1,0.72727693]
[1680640290869,3.63901523,1867.2,1867.1,0.72727693]
[1680640294421,7.50201523,1867.2,1867.1,0.72727693]
[1680640294566,7.50501523,1867.2,1867.1,0.72727693]
[1680640294765,7.77279523,1867.2,1867.1,0.72727693]
[1680640298267,7.50501523,1867.2,1867.1,0.72727693]
[1680640309895,7.51401523,1867.2,1867.1,0.72727693]
[1680640310417,7.50501523,1867.2,1867.1,0.72727693]
[1680640312503,10.77279523,1867.2,1867.1,0.72727693]
[1680640312810,18.51610819,1867.2,1867.1,0.72727693]
[1680640313227,19.07733563,1867.2,1867.1,0.72727693]
[1680640313516,18.51610819,1867.2,1867.1,0.72727693]
[1680640315325,17.58635523,1867.2,1867.1,0.72727693]
[1680640320731,17.05079523,1867.2,1867.1,0.72727693]
[1680640320905,9.85601523,1867.2,1867.1,0.72727693]
[1680640321295,9.62601523,1867.2,1867.1,0.72727693]
[1680640322505,9.85601523,1867.2,1867.1,0.72727693]
[1680640324367,10.12379523,1867.2,1867.1,0.72727693]
[1680640324497,9.85601523,1867.2,1867.1,0.72727693]
[1680640324832,10.12379523,1867.2,1867.1,0.72727693]
[1680640325200,9.85601523,1867.2,1867.1,0.72727693]
[1680640326131,10.12379523,1867.2,1867.1,0.72727693]
[1680640327237,9.85601523,1867.2,1867.1,0.72727693]
[1680640327434,10.12379523,1867.2,1867.1,0.72727693]
[1680640327733,9.85601523,1867.2,1867.1,0.72727693]
[1680640328036,10.12379523,1867.2,1867.1,0.72727693]
[1680640330050,9.3405281,1867.2,1867.1,0.72727693]
[1680640331249,10.83149806,1867.2,1867.1,0.72727693]
[1680640331456,10.27027062,1867.2,1867.1,0.72727693]
[1680640331751,9.3405281,1867.2,1867.1,0.72727693]
[1680640332124,9.9865281,1867.2,1867.1,0.72727693]
[1680640335050,10.91628564,1867.2,1867.1,0.72727693]
[1680640335865,17.08684564,1867.2,1867.1,0.72727693]
[1680640336062,17.0868411,1867.2,1867.1,0.72727693]
[1680640337274,16.1570881,1867.2,1867.1,0.72727693]
[1680640338351,17.08683256,1867.2,1867.1,0.72727693]
[1680640338552,16.1570881,1867.2,1867.1,0.72727693]
[1680640339498,17.08683208,1867.2,1867.1,0.72727693]
[1680640340949,16.1570881,1867.2,1867.1,0.72727693]
[1680640341274,17.08682905,1867.2,1867.1,0.72727693]
[1680640345071,16.1570881,1867.2,1867.1,0.72727693]
[1680640345371,17.08682663,1867.2,1867.1,0.72727693]
[1680640345576,16.44082663,1867.2,1867.1,0.72727693]
[1680640346971,17.00205407,1867.2,1867.1,0.72727693]
[1680640347476,16.44082663,1867.2,1867.1,0.72727693]
[1680640348341,16.44082286,1867.2,1867.1,0.72727693]
[1680640350476,17.0020503,1867.2,1867.1,0.72727693]
[1680640350689,15.90526286,1867.2,1867.1,0.72727693]
[1680640351698,16.4664903,1867.2,1867.1,0.72727693]
[1680640353068,15.90526286,1867.2,1867.1,0.72727693]
[1680640353270,9.12948286,1867.2,1867.1,0.72727693]
[1680640353464,8.1997481,1867.2,1867.1,0.72727693]
[1680640353995,8.19658484,1867.2,1867.1,0.72727693]
[1680640354288,8.19658484,1867.2,1867.1,0.80000462]
[1680640355269,0.003,1867.2,1867.1,1.06779462]
[1680640355491,0.13615149,1867.5,1867.1,7.90626294]
[1680640355690,1.95582826,1867.8,1867.3,1.87435]
[1680640355891,0.56122744,1867.8,1867.3,1.87435]
[1680640356186,31.33606859,1867.9,1867.4,0.0218848]
[1680640356387,31.33606859,1867.9,1867.5,0.26773]
[1680640356388,2.76602218,1867.8,1867.5,0.26773]
[1680640356573,2.76602218,1867.8,1867.5,0.35024148]
[1680640358687,0.23,1867.7,1867.5,0.35024148]
[1680640361006,0.23,1867.7,1867.6,0.62387779]
[1680640364268,2.99602218,1867.7,1867.6,0.62387779]
[1680640376099,2.99602218,1867.7,1867.4,0.0218848]
[1680640377104,2.99602218,1867.7,1867.5,0.64077948]
[1680640377638,2.99315564,1867.7,1867.5,0.64077948]
[1680640379917,2.99315564,1867.7,1867.5,0.70704591]
[1680640380120,2.99315564,1867.7,1867.5,0.97477591]
[1680640383043,2.99315564,1867.7,1867.5,1.51024591]
[1680640384144,0.22713346,1867.7,1867.5,1.51024591]
[1680640384314,0.23,1867.6,1867.5,1.51024591]
[1680640384514,3.0,1867.8,1867.5,1.51024591]
[1680640384838,3.13504017,1867.9,1867.5,1.51024591]
[1680640385047,5.89806235,1867.9,1867.6,0.15102459]
[1680640385341,5.90106235,1867.9,1867.6,0.41874459]
[1680640385843,0.23,1867.8,1867.6,0.15102459]
[1680640386005,0.23,1867.8,1867.7,0.6407315]
[1680640386349,0.23,1867.8,1867.7,0.07917561]
[1680640386667,0.23,1867.8,1867.5,0.33398643]
[1680640386803,0.23,1867.8,1867.6,0.28959246]
[1680640387008,0.13204017,1867.9,1867.6,0.82503246]
[1680640389225,0.13204017,1867.9,1867.7,0.63771043]
[1680640389460,0.13204017,1867.9,1867.8,0.26769]
[1680640389656,0.13204017,1867.9,1867.8,0.89361004]
[1680640389850,0.1,1868.1,1867.8,0.89361004]
[1680640390058,0.23,1868.0,1867.8,0.89361004]
[1680640390364,0.23,1868.1,1867.8,0.89361004]
[1680640390518,0.23,1868.1,1868.0,0.26766]
[1680640391361,0.23,1868.1,1867.9,0.357021]
[1680640395038,0.23,1868.1,1867.9,0.892381]
[1680640395565,3.13078532,1868.2,1867.9,0.892381]
[1680640395869,0.13078532,1868.2,1867.9,0.892381]
[1680640396172,0.13078532,1868.2,1868.1,0.26765]
[1680640396331,0.13078532,1868.2,1868.1,0.80295]
[1680640397141,0.1,1868.4,1868.1,0.80295]
[1680640397469,0.1,1868.4,1868.1,0.26765]
[1680640398678,0.1,1868.4,1868.1,0.2895266]
[1680640398840,0.1,1868.4,1868.1,7.61579507]
[1680640399234,0.23612938,1868.4,1868.1,7.61579507]
[1680640400175,0.23612938,1868.4,1868.1,7.61779507]
[1680640400857,0.23612938,1868.4,1868.1,7.61579507]
[1680640401058,0.23612938,1868.4,1868.1,7.61779507]
[1680640401257,0.23612938,1868.4,1868.2,0.76177951]
[1680640401464,0.23612938,1868.4,1868.2,0.82939951]
[1680640404289,0.23612938,1868.4,1868.3,0.62730226]
[1680640405145,0.23612938,1868.4,1868.1,1.44549507]
[1680640405479,0.23612938,1868.4,1868.1,1.17784507]
[1680640405674,0.23612938,1868.4,1868.2,0.11778451]
[1680640405893,0.23612938,1868.4,1868.1,0.2895166]
[1680640406779,0.23,1868.3,1868.1,0.0218766]
[1680640407025,2.99602218,1868.3,1867.8,9.96878]
[1680640407154,2.99602218,1868.3,1867.9,0.26767]
[1680640407486,2.99602218,1868.3,1867.8,0.80706]
[1680640407638,2.99602218,1868.3,1867.8,0.80306]
[1680640408689,2.99602218,1868.3,1867.7,0.2757]
[1680640408690,0.644,1868.1,1867.7,0.2757]
[1680640408844,0.23,1868.0,1867.6,0.006]
[1680640409184,0.23,1868.0,1867.6,0.27372]
[1680640409552,0.23,1868.0,1867.6,0.80916]
[1680640409758,0.23,1868.0,1867.6,2.347363]
[1680640410267,0.23,1868.0,1867.6,2.341363]
[1680640410658,0.23,1868.0,1867.6,1.805923]
[1680640411693,3.41202218,1867.9,1867.5,0.26973]
[1680640411891,0.23,1867.8,1867.5,0.26773]
[1680640412562,0.23,1867.8,1867.4,0.2896248]
[1680640412872,2.76602218,1867.7,1867.4,0.26775]
[1680640413195,0.23,1867.6,1867.5,0.54832107]
[1680640416108,0.23,1867.6,1867.5,0.81605107]
[1680640417181,0.23,1867.6,1867.5,1.48667518]
[1680640418517,0.23,1867.6,1867.5,1.35152107]
[1680640420294,0.23,1867.6,1867.5,0.81605107]
[1680640420629,0.23,1867.6,1867.5,0.54832107]
[1680640422540,7.62074218,1867.6,1867.5,0.54832107]
[1680640422745,7.63274218,1867.6,1867.5,0.54832107]
[1680640422927,7.36502218,1867.6,1867.5,0.54832107]
[1680640426038,4.14802218,1867.6,1867.5,0.54832107]
[1680640426216,4.14502218,1867.6,1867.5,0.54832107]
[1680640429777,4.14502218,1867.6,1867.5,0.81605107]
[1680640429969,4.14502218,1867.6,1867.5,0.54832107]
[1680640430366,4.14502218,1867.6,1867.5,0.81605107]
[1680640430684,1.149,1867.6,1867.5,0.54832107]
[1680640430851,0.009,1867.7,1867.5,0.54832107]
[1680640432454,0.239,1867.7,1867.5,0.54832107]
[1680640432777,0.23,1867.7,1867.5,0.54832107]
[1680640437056,0.23,1867.7,1867.5,0.62992818]
[1680640440365,0.23,1867.7,1867.5,0.89765818]
[1680640443159,0.23,1867.7,1867.5,1.43312818]
[1680640443496,0.1341939,1867.9,1867.5,7.09001182]
[1680640443700,0.1311939,1867.9,1867.6,0.70900118]
[1680640443865,0.1311939,1867.9,1867.7,0.80311]
[1680640447179,0.1311939,1867.9,1867.7,0.2677]
[1680640447700,0.1311939,1867.9,1867.7,6.43811]
[1680640447906,0.1311939,1867.9,1867.8,0.643811]
[1680640448199,0.1311939,1867.9,1867.8,0.911501]
[1680640449228,0.1311939,1867.9,1867.8,1.43142367]
[1680640453103,0.12902858,1867.9,1867.8,1.43142367]
[1680640472398,1.50302858,1867.9,1867.8,0.51992267]
[1680640473789,1.50302858,1867.9,1867.8,0.51660833]
[1680640473953,4.26905076,1867.9,1867.8,0.51660833]
[1680640477006,4.26905076,1867.9,1867.8,0.78429833]
[1680640480116,4.26905076,1867.9,1867.8,0.51660833]
[1680640480332,4.6970973,1867.9,1867.8,0.51660833]
[1680640481726,4.6970973,1867.9,1867.8,0.78429833]
[1680640482271,4.1940973,1867.9,1867.8,0.78429833]
[1680640482583,0.003,1868.0,1867.8,0.78429833]
[1680640482787,0.647,1867.9,1867.8,0.78429833]
[1680640484718,0.877,1867.9,1867.8,0.51660833]
[1680640485739,0.877,1867.9,1867.8,0.78429833]
[1680640487420,0.877,1867.9,1867.8,0.51660833]
[1680640487661,3.64302218,1867.9,1867.8,0.51660833]
[1680640488149,3.64302218,1867.9,1867.7,0.087]
[1680640488349,0.873,1867.8,1867.7,0.087]
[1680640488738,0.873,1867.8,1867.6,0.26771]
[1680640489127,0.873,1867.8,1867.7,0.52816061]
[1680640490068,0.873,1867.8,1867.6,0.26771]
[1680640494174,0.873,1867.8,1867.7,0.53501765]
[1680640494378,0.873,1867.8,1867.7,0.80271765]
[1680640508755,0.873,1867.8,1867.7,0.93653341]
[1680640508931,0.643,1867.8,1867.7,1.47194341]
[1680640509257,1.20722744,1868.2,1867.7,1.47194341]
[1680640509258,0.012,1868.2,1867.7,1.47194341]
[1680640509460,4.21722744,1868.3,1867.8,0.14719434]
[1680640509755,6.98024962,1868.3,1867.9,0.80301]
[1680640510058,6.42202218,1868.3,1867.9,0.80301]
[1680640510257,6.42202218,1868.3,1867.9,1.34135315]
[1680640510458,0.656,1868.3,1868.0,0.13413532]
[1680640510619,0.653,1868.3,1868.1,0.80295]
[1680640510816,0.644,1868.3,1868.1,0.26765]
[1680640512030,3.89012938,1868.4,1868.1,0.26765]
[1680640512031,3.89312938,1868.4,1868.1,0.26765]
[1680640512226,3.89012938,1868.4,1868.1,0.26765]
[1680640512431,3.89012938,1868.4,1868.1,0.347947]
[1680640513335,3.89012938,1868.4,1868.1,0.080297]
[1680640513833,3.89012938,1868.4,1868.1,0.347937]
[1680640514436,3.89012938,1868.4,1868.1,0.080297]
[1680640514640,3.89012938,1868.4,1868.0,0.26765]
[1680640515943,3.61071987,1868.4,1868.0,0.27238807]
[1680640516146,0.61071987,1868.4,1868.0,0.27238807]
[1680640516350,0.61071987,1868.4,1868.0,0.26965]
[1680640517867,0.61071987,1868.4,1868.0,0.26765]
[1680640518034,0.61071987,1868.4,1868.0,0.9141117]
[1680640518232,0.61071987,1868.4,1868.0,0.9181117]
[1680640518434,0.74169146,1868.4,1868.0,0.004]
[1680640518675,0.23,1868.3,1867.9,0.29427703]
[1680640522028,0.873,1868.3,1867.9,0.29427703]
[1680640524292,0.873,1868.3,1868.0,0.54048138]
[1680640524991,0.873,1868.3,1868.0,0.80814138]
[1680640525293,0.873,1868.3,1868.0,0.54048138]
[1680640526776,0.873,1868.3,1868.0,0.80814138]
[1680640527411,0.873,1868.3,1868.0,0.54048138]
[1680640527956,0.873,1868.3,1868.0,0.80814138]
[1680640529994,0.23,1868.3,1868.0,1.34347138]
[1680640530155,0.23,1868.3,1868.1,0.13434714]
[1680640530358,0.23,1868.3,1868.2,0.26763]
[1680640530558,0.13097159,1868.4,1868.2,0.26763]
[1680640531805,0.13097159,1868.4,1868.1,0.40197714]
[1680640532010,0.13097159,1868.4,1868.1,0.26763]
[1680640532964,0.13097159,1868.4,1868.2,0.405]
[1680640534216,0.13097159,1868.4,1868.2,0.67263]
[1680640534584,0.13097159,1868.4,1868.2,0.405]
[1680640534966,0.13097159,1868.4,1868.2,0.472263]
[1680640536086,0.13097159,1868.4,1868.2,0.067263]
[1680640536303,0.13097159,1868.4,1868.0,0.27165]
[1680640538386,0.23,1868.3,1868.0,0.27165]
[1680640539177,0.23,1868.3,1868.1,0.66892737]
[1680640539377,0.23,1868.3,1868.1,0.93656737]
[1680640539577,0.23,1868.3,1868.1,1.08423091]
[1680640540873,0.23,1868.3,1868.1,1.61953091]
[1680640543525,0.13097159,1868.4,1868.3,0.00391731]
[1680640543681,0.13097159,1868.4,1868.3,0.27153731]
[1680640544088,0.13097159,1868.4,1868.3,0.93951013]
[1680640544286,0.13097159,1868.4,1868.3,0.27153731]
[1680640548643,0.12847567,1868.4,1868.3,0.27153731]
[1680640554098,0.12847567,1868.4,1868.3,0.93951013]
[1680640556339,0.12847567,1868.4,1868.3,0.67189013]
[1680640556544,0.35847567,1868.4,1868.3,0.93951013]
[1680640557091,0.35847567,1868.4,1868.3,0.67189013]
[1680640557297,6.97649785,1868.4,1868.3,0.67189013]
[1680640557521,6.97949785,1868.4,1868.3,0.67189013]
[1680640558413,6.97949785,1868.4,1868.3,0.93951013]
[1680640559032,6.97949785,1868.4,1868.3,0.67189013]
[1680640559231,6.98849785,1868.4,1868.3,1.13012967]
[1680640560149,6.97949785,1868.4,1868.3,1.13012967]
[1680640562044,6.33849785,1868.4,1868.3,1.13012967]
[1680640571850,6.33638485,1868.4,1868.3,1.13012967]
[1680640576541,0.35936267,1868.4,1868.3,1.13012967]
[1680640576738,0.35636267,1868.4,1868.3,1.29666964]
[1680640578387,0.35636267,1868.4,1868.3,1.13012967]
[1680640585560,0.35636267,1868.4,1868.3,0.86250967]
[1680640587462,0.35636267,1868.4,1868.3,1.13012967]
[1680640588093,0.35636267,1868.4,1868.3,0.86250967]
[1680640590585,0.35636267,1868.4,1868.3,1.13012967]
[1680640591159,0.35636267,1868.4,1868.3,0.86250967]
[1680640593179,0.35636267,1868.4,1868.3,1.13012967]
[1680640594598,0.35313947,1868.4,1868.3,1.13012967]
[1680640595588,0.35313947,1868.4,1868.3,1.12725266]
[1680640599404,0.35313947,1868.4,1868.3,0.85963266]
[1680640600919,0.35313947,1868.4,1868.3,1.12725266]
[1680640602806,0.35313947,1868.4,1868.3,0.85963266]
[1680640603606,0.35313947,1868.4,1868.3,1.12725266]
[1680640609122,7.62416165,1868.4,1868.3,0.85963266]
[1680640609422,11.27416165,1868.4,1868.3,0.85963266]
[1680640610322,11.27416165,1868.4,1868.3,0.0010403]
[1680640610874,12.76452165,1868.4,1868.3,0.0010403]
[1680640611075,20.21297536,1868.4,1868.3,0.0010403]
[1680640611289,34.76778303,1868.4,1868.3,0.0010403]
[1680640611504,36.1613766,1868.4,1868.3,0.0010403]
[1680640611894,37.00321775,1868.4,1868.3,0.0010403]
[1680640612295,37.48490775,1868.4,1868.3,0.0010403]
[1680640612502,36.6430666,1868.4,1868.3,0.0010403]
[1680640613111,36.6520666,1868.4,1868.3,0.0010403]
[1680640613324,36.1703766,1868.4,1868.3,0.0010403]
[1680640615984,36.1673766,1868.4,1867.8,0.2487303]
[1680640616314,0.647,1867.9,1867.8,0.2487303]
[1680640616494,3.41302218,1867.9,1867.8,0.2487303]
[1680640616695,3.64302218,1867.9,1867.8,0.2487303]
[1680640617315,3.64302218,1867.9,1867.8,1.16451215]
[1680640622199,0.877,1867.9,1867.8,1.16451215]
[1680640622396,0.877,1867.9,1867.8,1.69989215]
[1680640622746,0.877,1867.9,1867.8,1.92338137]
[1680640626628,0.877,1867.9,1867.8,1.38800137]
[1680640626821,0.877,1867.9,1867.8,1.16451215]
[1680640629562,0.23,1867.9,1867.8,1.16451215]
[1680640632818,0.23,1868.0,1867.8,1.16451215]
[1680640638349,2.76602218,1867.9,1867.8,0.91578185]
[1680640638553,3.64302218,1867.9,1867.8,1.18347185]
[1680640640387,3.64059578,1867.9,1867.8,1.18347185]
[1680640646096,3.64059578,1867.9,1867.8,0.91578185]
[1680640646302,3.64059578,1867.9,1867.8,1.18347185]
[1680640650013,0.877,1867.9,1867.8,1.18347185]
[1680640650216,0.877,1867.9,1867.8,1.94424004]
[1680640650595,0.23,1867.9,1867.8,1.94424004]
[1680640651294,3.647,1868.1,1867.8,1.94424004]
[1680640651828,0.647,1868.1,1867.8,1.94424004]
[1680640651999,1.17829313,1868.2,1867.8,1.94424004]
[1680640652328,1.17829313,1868.2,1867.9,0.194424]
[1680640652635,1.17829313,1868.2,1868.0,0.26766]
[1680640652788,0.23,1868.1,1868.0,0.26766]
[1680640659202,0.23,1868.1,1868.0,1.16677835]
[1680640664830,0.23,1868.1,1868.0,1.70210835]
[1680640665362,0.22623307,1868.1,1868.0,1.70210835]
[1680640668156,0.22623307,1868.1,1868.0,1.69835187]
[1680640670551,1.17829313,1868.2,1868.0,1.69835187]
[1680640670757,1.17829313,1868.2,1868.0,2.26235187]
[1680640672035,0.53729313,1868.2,1868.0,2.26235187]
[1680640672247,3.656,1868.3,1868.0,2.26235187]
[1680640672539,0.23,1868.2,1868.0,2.26235187]
[1680640672745,0.23,1868.2,1868.0,2.50802946]
[1680640678871,0.23,1868.2,1868.0,2.26235187]
[1680640680777,0.641,1868.1,1868.0,1.72702187]
[1680640680973,0.871,1868.1,1868.0,2.26235187]
[1680640682783,4.18812569,1868.3,1868.0,3.55924706]
[1680640682931,19.48683947,1868.4,1868.1,5.635]
[1680640682932,0.012,1868.4,1868.1,5.635]
[1680640683246,0.1,1868.6,1868.3,6.282]
[1680640683444,0.109,1868.8,1868.5,8.90102218]
[1680640683650,0.1,1868.8,1868.7,0.76756]
[1680640683953,0.1,1868.8,1868.7,12.66932811]
[1680640684269,0.1,1868.8,1868.7,13.19606618]
[1680640684439,0.1,1868.8,1868.7,15.62935502]
[1680640684639,0.1,1868.9,1868.8,0.5]
[1680640684876,0.1,1868.9,1868.8,10.19502218]
[1680640685075,0.1,1868.9,1868.8,12.06787218]
[1680640685377,0.1,1869.1,1869.0,15.53332]
[1680640685534,0.1,1869.5,1869.0,15.53332]
[1680640685535,0.1,1869.5,1869.2,7.50744]
[1680640685965,0.1,1869.5,1869.2,8.03244]
[1680640686476,0.1,1869.5,1869.2,12.75332592]
[1680640686662,0.1,1869.6,1869.2,12.75332592]
[1680640686663,0.1,1869.6,1869.5,0.5]
[1680640686864,0.1,1869.6,1869.5,15.47828218]
[1680640687068,0.1,1869.6,1869.5,16.0041424]
[1680640687275,0.009,1870.4,1869.5,14.7161424]
[1680640687440,0.1,1870.5,1869.5,14.7161424]
[1680640687441,0.109,1870.5,1869.7,6.77]
[1680640687641,0.109,1870.5,1869.9,6.43715]
[1680640687863,0.109,1870.5,1870.1,5.635]
[1680640688448,0.109,1870.5,1870.1,5.90236]
[1680640689387,0.109,1870.5,1870.2,0.92553898]
[1680640689545,0.109,1870.5,1870.2,1.45953898]
[1680640689740,0.24403748,1870.5,1870.2,1.45953898]
[1680640689946,0.62297514,1870.5,1870.2,1.45953898]
[1680640695374,0.24403748,1870.5,1870.2,1.72687898]
[1680640701293,0.23,1870.4,1870.2,1.45953898]
[1680640701492,0.239,1870.4,1870.2,1.72687898]
[1680640703779,0.239,1870.4,1870.2,1.45953898]
[1680640705812,0.239,1870.4,1870.2,1.72687898]
[1680640706311,0.239,1870.4,1870.2,1.72688898]
[1680640706812,0.009,1870.4,1870.2,1.72688898]
[1680640707408,0.23503748,1870.5,1870.2,1.72688898]
[1680640707611,0.24403748,1870.5,1870.2,2.26158898]
[1680640707806,0.24403748,1870.5,1870.2,1.72688898]
[1680640707984,0.23803748,1870.5,1870.2,2.45955873]
[1680640708184,0.23503748,1870.5,1870.2,2.45955873]
[1680640709113,0.23503748,1870.5,1870.2,8.09455873]
[1680640710883,0.23503748,1870.5,1870.2,7.82720873]
[1680640711080,0.23503748,1870.5,1870.2,8.09454873]
[1680640711829,0.23503748,1870.5,1870.2,7.82720873]
[1680640711977,0.23503748,1870.5,1870.2,8.09454873]
[1680640712308,0.23503748,1870.5,1870.3,0.80945487]
[1680640713105,0.23503748,1870.5,1870.3,1.07678487]
[1680640713714,0.23503748,1870.5,1870.3,9.47780705]
[1680640713886,0.1,1870.5,1870.3,10.01247705]
[1680640714086,0.1,1870.5,1870.4,6.6362477]
[1680640714290,0.1,1870.5,1870.4,8.5074877]
[1680640714515,0.1,1870.5,1870.4,11.27350988]
[1680640715013,0.1,1870.5,1870.4,11.79550988]
[1680640715215,0.1,1870.5,1870.4,7.4255677]
[1680640715752,0.1,1870.5,1870.4,7.9602077]
[1680640716325,0.1,1870.5,1870.4,8.87692445]
[1680640718207,0.0083027,1870.5,1870.4,8.87892445]
[1680640718408,0.0083027,1870.5,1870.4,8.87692445]
[1680640719377,0.13590524,1870.9,1870.4,8.87692445]
[1680640719562,0.13590524,1870.9,1870.6,5.635]
[1680640722073,0.13590524,1870.9,1870.6,5.90228]
[1680640722447,0.13590524,1870.9,1870.7,0.517]
[1680640722647,0.13590524,1870.9,1870.6,5.86246892]
[1680640722849,0.13590524,1870.9,1870.7,0.277]
[1680640723045,0.13590524,1870.9,1870.7,0.89094689]
[1680640723250,0.13590524,1870.9,1870.7,6.48613581]
[1680640723935,0.13590524,1870.9,1870.7,0.89094689]
[1680640724147,0.13590524,1870.9,1870.7,0.277]
[1680640726143,0.13590524,1870.9,1870.7,0.54427]
[1680640726543,0.13590524,1870.9,1870.7,0.277]
[1680640727241,0.13590524,1870.9,1870.8,0.91179312]
[1680640728644,0.97774639,1870.9,1870.8,0.91179312]
[1680640729043,1.90575812,1870.9,1870.8,0.91179312]
[1680640729246,2.46419472,1870.9,1870.8,0.91179312]
[1680640729946,1.90575812,1870.9,1870.8,0.91179312]
[1680640730145,2.46419615,1870.9,1870.8,0.91179312]
[1680640730658,1.622355,1870.9,1870.8,0.91179312]
[1680640731168,1.90575812,1870.9,1870.8,0.91179312]
[1680640733188,2.46455657,1870.9,1870.8,0.91179312]
[1680640733477,2.46455657,1870.9,1870.8,1.17905312]
[1680640733681,1.62271542,1870.9,1870.8,1.17905312]
[1680640734180,1.62271542,1870.9,1870.8,0.91179312]
[1680640734343,1.62271542,1870.9,1870.8,1.17905312]
[1680640734546,1.62271542,1870.9,1870.8,0.91179312]
[1680640736500,1.85271542,1870.9,1870.8,0.91179312]
[1680640736651,2.53727108,1870.9,1870.8,0.91179312]
[1680640737051,3.67127108,1870.9,1870.8,0.91179312]
[1680640739290,3.11247263,1870.9,1870.8,0.91179312]
[1680640739808,3.67127108,1870.9,1870.8,0.91179312]
[1680640740429,3.11247263,1870.9,1870.8,0.91179312]
[1680640740769,3.67127108,1870.9,1870.8,0.91179312]
[1680640742713,2.1844609,1870.9,1870.8,0.91179312]
[1680640742868,1.49990524,1870.9,1870.8,0.91179312]
[1680640744570,10.71744742,1870.9,1870.8,0.91179312]
[1680640744792,11.96678438,1870.9,1870.8,0.91179312]
[1680640745805,12.21630438,1870.9,1870.8,0.91179312]
[1680640747204,13.05814553,1870.9,1870.8,0.91179312]
[1680640747800,12.98039708,1870.9,1870.8,0.91179312]
[1680640748091,15.46981957,1870.9,1870.8,0.91179312]
[1680640749071,18.29809007,1870.9,1870.8,0.27579312]
[1680640749271,18.55878819,1870.9,1870.3,0.00473807]
[1680640749491,1.142,1870.4,1870.3,0.00473807]
[1680640749711,1.142,1870.4,1870.2,0.00473807]
[1680640750328,1.142,1870.4,1870.3,0.80864447]
[1680640750528,1.372,1870.4,1870.3,0.80864447]
[1680640756433,0.23,1870.4,1870.3,0.80864447]
[1680640761822,0.23,1870.4,1870.3,1.07597447]
[1680640762550,0.23,1870.4,1870.3,0.80864447]
[1680640762737,0.23,1870.4,1870.3,1.07597447]
[1680640762934,0.23,1870.4,1870.3,0.80864447]
[1680640770661,0.2261445,1870.4,1870.3,0.80864447]
[1680640771376,3.003,1870.6,1870.3,1.72370892]
[1680640771510,0.56847005,1870.7,1870.3,8.42804892]
[1680640771511,0.012,1870.7,1870.3,8.42804892]
[1680640771711,0.55947005,1870.8,1870.3,8.42804892]
[1680640771907,1.53458037,1870.9,1870.4,0.84280489]
[1680640772153,0.92801365,1870.8,1870.5,0.2673]
[1680640772322,0.70437529,1870.9,1870.5,0.2673]
[1680640772531,0.69537529,1870.9,1870.5,0.43177349]
[1680640773822,0.23,1870.8,1870.5,0.43177349]
[1680640775650,0.69537529,1870.9,1870.5,0.43177349]
[1680640775901,0.13590524,1870.9,1870.6,5.635]
[1680640776050,0.13590524,1870.9,1870.7,0.83077]
[1680640776623,0.13590524,1870.9,1870.8,5.635]
[1680640776914,0.55947005,1871.2,1870.8,6.43679]
[1680640777109,0.55947005,1871.2,1870.9,0.643679]
[1680640777351,0.92786129,1871.2,1871.0,0.8017]
[1680640777542,0.56847005,1871.3,1871.0,0.8017]
[1680640777743,0.92782356,1871.2,1871.0,0.8017]
[1680640777958,0.700521,1871.3,1871.0,0.8017]
[1680640778723,0.14105095,1871.3,1871.0,0.8017]
[1680640778928,1.05985058,1871.3,1871.0,0.8017]
[1680640779131,3.13205095,1871.3,1871.0,1.1227]
[1680640779346,3.13205095,1871.3,1871.1,6.43100436]
[1680640779347,0.14105095,1871.3,1871.1,6.43100436]
[1680640779553,1.39867513,1871.5,1871.2,0.80161]
[1680640779554,0.56847005,1871.5,1871.2,0.80161]
[1680640779767,0.55947005,1871.5,1871.2,0.80161]
[1680640780275,0.56847005,1871.6,1871.3,0.79532725]
[1680640780480,2.33537097,1871.6,1871.4,0.26717]
[1680640780650,0.56847005,1871.6,1871.3,0.26718]
[1680640780847,3.56847005,1871.6,1871.3,0.26718]
[1680640781148,3.70524786,1871.6,1871.3,0.26718]
[1680640781349,3.14577781,1871.6,1871.3,0.8233992]
[1680640781529,0.14577781,1871.6,1871.4,0.08233992]
[1680640781737,0.13677781,1871.6,1871.5,0.26716]
[1680640782548,0.1,1871.7,1871.5,0.26716]
[1680640782747,0.1,1871.7,1871.5,0.57416]
[1680640783289,0.109,1871.7,1871.5,0.57416]
[1680640783449,0.1,1871.7,1871.5,0.57416]
[1680640783633,0.1,1871.7,1871.5,6.854341]
[1680640783835,0.103,1872.0,1871.7,7.50494]
[1680640784034,1.05949463,1872.2,1871.9,10.68702218]
[1680640784253,0.006,1872.7,1872.2,1.86936]